[Event "*** SCC Grand Prix: Titled Tuesday Blitz"]
[Site "Chess.com"]
[Date "2020.06.23"]
[Round "10"]
[White "ZverevLev"]
[Black "Artyom_ChessMate"]
[Result "1-0"]
[WhiteElo "2380"]
[BlackElo "2503"]
[TimeControl "180+1"]
[EndTime "11:56:03 PDT"]
[Termination "ZverevLev won by resignation"]

1. e4 {[%clk 0:03:00.9]} 1... e5 {[%clk 0:02:58]} 2. Nf3 {[%clk 0:03:00.1]} 2...
Nc6 {[%clk 0:02:58.1]} 3. Bb5 {[%clk 0:02:59.2]} 3... a6 {[%clk 0:02:57.9]} 4.
Ba4 {[%clk 0:02:58.8]} 4... Nf6 {[%clk 0:02:57]} 5. O-O {[%clk 0:02:57.7]} 5...
Be7 {[%clk 0:02:55.2]} 6. d3 {[%clk 0:02:56]} 6... b5 {[%clk 0:02:55.1]} 7. Bb3
{[%clk 0:02:55.5]} 7... O-O {[%clk 0:02:56]} 8. c3 {[%clk 0:02:55.4]} 8... d6
{[%clk 0:02:54]} 9. Nbd2 {[%clk 0:02:54.6]} 9... Bb7 {[%clk 0:02:53.1]} 10. Re1
{[%clk 0:02:53.8]} 10... Re8 {[%clk 0:02:51.9]} 11. Nf1 {[%clk 0:02:53.1]} 11...
Bf8 {[%clk 0:02:51.1]} 12. Ng3 {[%clk 0:02:52]} 12... h6 {[%clk 0:02:50.6]} 13.
h3 {[%clk 0:02:50.7]} 13... g6 {[%clk 0:02:48]} 14. Be3 {[%clk 0:02:49.3]} 14...
Na5 {[%clk 0:02:39.7]} 15. Bc2 {[%clk 0:02:47.1]} 15... c5 {[%clk 0:02:39.6]}
16. Qd2 {[%clk 0:02:46.7]} 16... Kh7 {[%clk 0:02:38]} 17. b4 {[%clk 0:02:39.4]}
17... cxb4 {[%clk 0:02:28.1]} 18. cxb4 {[%clk 0:02:40.3]} 18... Nc6 {[%clk
0:02:28.7]} 19. Bb3 {[%clk 0:02:39.1]} 19... Qd7 {[%clk 0:02:23]} 20. Rac1
{[%clk 0:02:14.5]} 20... Rac8 {[%clk 0:02:20.6]} 21. a3 {[%clk 0:02:12.8]} 21...
Bg7 {[%clk 0:02:15.1]} 22. Qa2 {[%clk 0:02:07.1]} 22... Nd8 {[%clk 0:02:02.2]}
23. Rxc8 {[%clk 0:02:05.4]} 23... Bxc8 {[%clk 0:01:57.9]} 24. d4 {[%clk
0:02:04.3]} 24... exd4 {[%clk 0:01:49.3]} 25. Bxd4 {[%clk 0:01:58.9]} 25... Bb7
{[%clk 0:01:47.1]} 26. Qb2 {[%clk 0:01:56.2]} 26... Nh5 {[%clk 0:01:15]} 27.
Nxh5 {[%clk 0:01:53.1]} 27... Bxd4 {[%clk 0:01:15.1]} 28. Nxd4 {[%clk
0:01:48.8]} 28... gxh5 {[%clk 0:01:15.4]} 29. Nf5 {[%clk 0:01:45]} 29... Rg8
{[%clk 0:01:00.5]} 30. Ng3 {[%clk 0:01:24.7]} 30... Kg6 {[%clk 0:00:13.7]} 31.
e5 {[%clk 0:01:21.6]} 31... d5 {[%clk 0:00:06]} 32. Bc2+ {[%clk 0:01:20.3]}
32... Kg7 {[%clk 0:00:04.8]} 33. e6+ {[%clk 0:01:19.2]} 1-0

[Event "*** SCC Grand Prix: Titled Tuesday Blitz"]
[Site "Chess.com"]
[Date "2020.06.23"]
[Round "10"]
[White "dosto07"]
[Black "ajian"]
[Result "1-0"]
[WhiteElo "2194"]
[BlackElo "2373"]
[TimeControl "180+1"]
[EndTime "11:56:03 PDT"]
[Termination "dosto07 won by resignation"]

1. e4 {[%clk 0:03:00.9]} 1... c5 {[%clk 0:02:58.7]} 2. Nf3 {[%clk 0:02:59.9]}
2... Nc6 {[%clk 0:02:59.1]} 3. Bb5 {[%clk 0:02:59.2]} 3... g6 {[%clk 0:02:59.3]}
4. O-O {[%clk 0:02:57.7]} 4... Bg7 {[%clk 0:02:59.5]} 5. c3 {[%clk 0:02:56.7]}
5... Nf6 {[%clk 0:02:59.7]} 6. e5 {[%clk 0:02:56.1]} 6... Nd5 {[%clk 0:02:57.1]}
7. d4 {[%clk 0:02:56.7]} 7... O-O {[%clk 0:02:56]} 8. Bxc6 {[%clk 0:02:46.8]}
8... dxc6 {[%clk 0:02:48.8]} 9. dxc5 {[%clk 0:02:47.7]} 9... Bg4 {[%clk
0:02:47.3]} 10. Re1 {[%clk 0:02:43.4]} 10... Qc7 {[%clk 0:02:35.8]} 11. c4
{[%clk 0:02:36]} 11... Nb4 {[%clk 0:02:30.5]} 12. Qb3 {[%clk 0:02:33.5]} 12...
Bxf3 {[%clk 0:02:20.9]} 13. Qxb4 {[%clk 0:02:31.2]} 13... Bg4 {[%clk 0:02:06.9]}
14. Bf4 {[%clk 0:02:27.2]} 14... Rad8 {[%clk 0:02:00.5]} 15. Nd2 {[%clk
0:02:16.1]} 15... h6 {[%clk 0:01:46.9]} 16. h3 {[%clk 0:02:15.6]} 16... Be6
{[%clk 0:01:45.2]} 17. Rad1 {[%clk 0:02:05.8]} 17... g5 {[%clk 0:01:40.5]} 18.
Bg3 {[%clk 0:02:04.5]} 18... Rd3 {[%clk 0:01:35.6]} 19. Nf3 {[%clk 0:01:49.7]}
19... Rfd8 {[%clk 0:01:26.6]} 20. Rxd3 {[%clk 0:01:46.9]} 20... Rxd3 {[%clk
0:01:27.5]} 21. Qa4 {[%clk 0:01:42.8]} 21... g4 {[%clk 0:01:18.2]} 22. hxg4
{[%clk 0:01:37.2]} 22... Bxg4 {[%clk 0:01:18]} 23. Rd1 {[%clk 0:01:32.5]} 23...
Rxd1+ {[%clk 0:01:01.7]} 24. Qxd1 {[%clk 0:01:31.2]} 24... Bxe5 {[%clk 0:00:38]}
25. Bxe5 {[%clk 0:01:28.5]} 25... Bxf3 {[%clk 0:00:38.3]} 26. Qxf3 {[%clk
0:01:24.6]} 26... Qxe5 {[%clk 0:00:38.3]} 27. Qg4+ {[%clk 0:01:23.1]} 27... Kh7
{[%clk 0:00:36.1]} 28. Qd7 {[%clk 0:00:58.4]} 28... Qe1+ {[%clk 0:00:24.1]} 29.
Kh2 {[%clk 0:00:57.3]} 29... Qxf2 {[%clk 0:00:24.1]} 30. Qxe7 {[%clk 0:00:55.1]}
30... Qh4+ {[%clk 0:00:20]} 31. Qxh4 {[%clk 0:00:50.9]} 1-0

[Event "*** SCC Grand Prix: Titled Tuesday Blitz"]
[Site "Chess.com"]
[Date "2020.06.23"]
[Round "10"]
[White "Jumbo"]
[Black "LiemLe"]
[Result "0-1"]
[WhiteElo "2860"]
[BlackElo "3011"]
[TimeControl "180+1"]
[EndTime "11:56:09 PDT"]
[Termination "LiemLe won on time"]

1. d4 {[%clk 0:03:00.9]} 1... Nf6 {[%clk 0:02:59.5]} 2. c4 {[%clk 0:03:01.3]}
2... e6 {[%clk 0:02:59.9]} 3. Nf3 {[%clk 0:03:01.1]} 3... d5 {[%clk 0:03:00.3]}
4. g3 {[%clk 0:03:01]} 4... dxc4 {[%clk 0:03:00.1]} 5. Bg2 {[%clk 0:03:00.4]}
5... Nc6 {[%clk 0:03:00.7]} 6. Qa4 {[%clk 0:02:59.3]} 6... Bb4+ {[%clk
0:03:00.3]} 7. Bd2 {[%clk 0:02:59.6]} 7... Nd5 {[%clk 0:03:00.9]} 8. Bxb4 {[%clk
0:02:41.4]} 8... Nxb4 {[%clk 0:03:01.8]} 9. Nc3 {[%clk 0:02:41.4]} 9... Bd7
{[%clk 0:02:55.6]} 10. O-O {[%clk 0:02:40.4]} 10... a5 {[%clk 0:02:53.2]} 11.
Qb5 {[%clk 0:01:34.3]} 11... Nxd4 {[%clk 0:02:52]} 12. Qxc4 {[%clk 0:01:27.9]}
12... Nxf3+ {[%clk 0:02:49.5]} 13. Bxf3 {[%clk 0:01:28.8]} 13... c6 {[%clk
0:02:22.4]} 14. Rfd1 {[%clk 0:01:21.9]} 14... O-O {[%clk 0:02:22.2]} 15. Qd4
{[%clk 0:00:28.7]} 15... Nc2 {[%clk 0:02:16.7]} 16. Qxd7 {[%clk 0:00:22.7]}
16... Qxd7 {[%clk 0:02:17.6]} 17. Rxd7 {[%clk 0:00:22.9]} 17... Nxa1 {[%clk
0:02:18.2]} 18. Rxb7 {[%clk 0:00:23.3]} 18... Rfb8 {[%clk 0:02:08]} 19. Rc7
{[%clk 0:00:16.8]} 19... Rc8 {[%clk 0:02:06.5]} 20. Rd7 {[%clk 0:00:15.7]} 20...
Nc2 {[%clk 0:02:03]} 21. Ne4 {[%clk 0:00:12.1]} 21... Rd8 {[%clk 0:01:58.7]} 22.
Rc7 {[%clk 0:00:11.4]} 22... Rd1+ {[%clk 0:01:53]} 23. Kg2 {[%clk 0:00:11.1]}
23... Ne1+ {[%clk 0:01:53.7]} 24. Kh3 {[%clk 0:00:11.7]} 24... Nxf3 {[%clk
0:01:54.6]} 25. exf3 {[%clk 0:00:12.6]} 25... Rc1 {[%clk 0:01:48.5]} 26. Nd6
{[%clk 0:00:07.2]} 26... Rf8 {[%clk 0:01:47.5]} 27. Kg2 {[%clk 0:00:06.5]} 27...
Rc2 {[%clk 0:01:47.4]} 28. b3 {[%clk 0:00:06.9]} 28... Rxa2 {[%clk 0:01:40]} 29.
Rxc6 {[%clk 0:00:06.3]} 29... h6 {[%clk 0:01:38.5]} 30. Rb6 {[%clk 0:00:04.7]}
30... Rd8 {[%clk 0:01:37.3]} 31. Nc4 {[%clk 0:00:04.3]} 31... Rd4 {[%clk
0:01:33.4]} 32. Rc6 {[%clk 0:00:01.7]} 32... Kh7 {[%clk 0:01:22.7]} 33. f4
{[%clk 0:00:01.1]} 33... f6 {[%clk 0:01:15.1]} 0-1

[Event "*** SCC Grand Prix: Titled Tuesday Blitz"]
[Site "Chess.com"]
[Date "2020.06.23"]
[Round "10"]
[White "Bhagya_2312"]
[Black "pitterson"]
[Result "0-1"]
[WhiteElo "2057"]
[BlackElo "2277"]
[TimeControl "180+1"]
[EndTime "11:56:13 PDT"]
[Termination "pitterson won by resignation"]

1. e4 {[%clk 0:02:59.4]} 1... c6 {[%clk 0:02:58.7]} 2. d4 {[%clk 0:02:58.6]}
2... d5 {[%clk 0:02:58.6]} 3. e5 {[%clk 0:02:58.2]} 3... c5 {[%clk 0:02:58.2]}
4. dxc5 {[%clk 0:02:57.2]} 4... e6 {[%clk 0:02:57.3]} 5. Nf3 {[%clk 0:02:51.5]}
5... Bxc5 {[%clk 0:02:55.9]} 6. a3 {[%clk 0:02:51.5]} 6... Nc6 {[%clk
0:02:53.4]} 7. Bd3 {[%clk 0:02:50.5]} 7... Nge7 {[%clk 0:02:51.3]} 8. O-O {[%clk
0:02:50.2]} 8... Ng6 {[%clk 0:02:50.4]} 9. Qe2 {[%clk 0:02:43.5]} 9... Qc7
{[%clk 0:02:47]} 10. Re1 {[%clk 0:02:39.6]} 10... Bd7 {[%clk 0:02:38.3]} 11. g3
{[%clk 0:02:34.1]} 11... Rc8 {[%clk 0:02:31.1]} 12. b4 {[%clk 0:02:31.2]} 12...
Nd4 {[%clk 0:02:26.6]} 13. Qd1 {[%clk 0:01:50.5]} 13... Nxf3+ {[%clk 0:02:22.1]}
14. Qxf3 {[%clk 0:01:49.9]} 14... Bd4 {[%clk 0:02:22]} 15. c3 {[%clk 0:01:43.5]}
15... Nxe5 {[%clk 0:02:06.5]} 16. Qe2 {[%clk 0:01:38.8]} 16... Nxd3 {[%clk
0:02:02.1]} 17. Qxd3 {[%clk 0:01:38.7]} 17... Bxc3 {[%clk 0:01:58.4]} 18. Nxc3
{[%clk 0:01:33.5]} 18... Qxc3 {[%clk 0:01:57.2]} 19. Qxc3 {[%clk 0:01:33.5]}
19... Rxc3 {[%clk 0:01:56.1]} 20. Bb2 {[%clk 0:01:33.6]} 20... Rc4 {[%clk
0:01:50.6]} 21. Bxg7 {[%clk 0:01:32.9]} 21... Rg8 {[%clk 0:01:49.2]} 22. Be5
{[%clk 0:01:31.7]} 22... f6 {[%clk 0:01:46.3]} 23. Bd6 {[%clk 0:01:20.8]} 23...
Kf7 {[%clk 0:01:43]} 24. Rac1 {[%clk 0:01:14.6]} 24... Rgc8 {[%clk 0:01:40.7]}
25. Bf4 {[%clk 0:01:13.8]} 25... e5 {[%clk 0:01:36.2]} 26. Bd2 {[%clk
0:01:10.9]} 26... Rxc1 {[%clk 0:01:33.8]} 27. Rxc1 {[%clk 0:01:10.2]} 27...
Rxc1+ {[%clk 0:01:31.1]} 28. Bxc1 {[%clk 0:01:10.2]} 28... Bb5 {[%clk
0:01:27.7]} 29. f3 {[%clk 0:01:08.7]} 29... d4 {[%clk 0:01:26.4]} 30. Kf2 {[%clk
0:01:07.9]} 30... Ke6 {[%clk 0:01:26]} 31. Bh6 {[%clk 0:00:54.8]} 31... f5
{[%clk 0:01:20.8]} 32. Bg7 {[%clk 0:00:44.5]} 32... Kd5 {[%clk 0:01:19.4]} 33.
g4 {[%clk 0:00:33.5]} 33... fxg4 {[%clk 0:01:17.2]} 34. fxg4 {[%clk 0:00:33.4]}
34... e4 {[%clk 0:01:16.6]} 35. h4 {[%clk 0:00:32.4]} 35... Kc4 {[%clk
0:01:14.6]} 36. h5 {[%clk 0:00:31]} 36... Be8 {[%clk 0:01:11.3]} 37. Ke2 {[%clk
0:00:27.1]} 37... Bd7 {[%clk 0:01:07.1]} 0-1

[Event "*** SCC Grand Prix: Titled Tuesday Blitz"]
[Site "Chess.com"]
[Date "2020.06.23"]
[Round "10"]
[White "Violord"]
[Black "Mourinho_Jose"]
[Result "1-0"]
[WhiteElo "2616"]
[BlackElo "2473"]
[TimeControl "180+1"]
[EndTime "11:56:17 PDT"]
[Termination "Violord won on time"]

1. e4 {[%clk 0:02:58.3]} 1... e5 {[%clk 0:02:59.2]} 2. Nf3 {[%clk 0:02:57.6]}
2... Nf6 {[%clk 0:02:58.9]} 3. d4 {[%clk 0:02:55.9]} 3... Nxe4 {[%clk 0:02:58]}
4. dxe5 {[%clk 0:02:55.8]} 4... d5 {[%clk 0:02:58.1]} 5. Nbd2 {[%clk 0:02:55.5]}
5... Nxd2 {[%clk 0:02:53.8]} 6. Bxd2 {[%clk 0:02:54.9]} 6... c5 {[%clk
0:02:54.1]} 7. c3 {[%clk 0:02:45]} 7... Nc6 {[%clk 0:02:52.5]} 8. Bd3 {[%clk
0:02:44.9]} 8... Be7 {[%clk 0:02:48.6]} 9. h3 {[%clk 0:02:42.4]} 9... Be6 {[%clk
0:02:43.4]} 10. O-O {[%clk 0:02:41.4]} 10... O-O {[%clk 0:02:42.9]} 11. Re1
{[%clk 0:02:38.6]} 11... h6 {[%clk 0:02:39.4]} 12. Qe2 {[%clk 0:02:35.3]} 12...
Qd7 {[%clk 0:02:35.5]} 13. Rad1 {[%clk 0:02:34]} 13... Rfe8 {[%clk 0:02:26.2]}
14. Bc1 {[%clk 0:02:33.8]} 14... Bf8 {[%clk 0:02:21.1]} 15. Qc2 {[%clk
0:02:31.5]} 15... Qc7 {[%clk 0:02:16]} 16. Bf4 {[%clk 0:02:22.2]} 16... Rad8
{[%clk 0:02:12.1]} 17. Qc1 {[%clk 0:02:20.5]} 17... d4 {[%clk 0:02:10.4]} 18. c4
{[%clk 0:02:16.8]} 18... Nb4 {[%clk 0:02:04.4]} 19. Bb1 {[%clk 0:02:16.4]} 19...
Qa5 {[%clk 0:01:29.4]} 20. a3 {[%clk 0:02:15]} 20... Nc6 {[%clk 0:01:28.4]} 21.
Qc2 {[%clk 0:02:14.7]} 21... g6 {[%clk 0:01:27.6]} 22. Qc1 {[%clk 0:02:14.7]}
22... Kh7 {[%clk 0:01:17.7]} 23. h4 {[%clk 0:02:14.6]} 23... Qa4 {[%clk
0:01:14.3]} 24. Bd3 {[%clk 0:02:13.3]} 24... Na5 {[%clk 0:01:14.3]} 25. Nd2
{[%clk 0:02:09.2]} 25... h5 {[%clk 0:01:06.3]} 26. b3 {[%clk 0:02:02.9]} 26...
Qd7 {[%clk 0:01:04.2]} 27. Ne4 {[%clk 0:02:02.1]} 27... Bg7 {[%clk 0:00:58.5]}
28. Qc2 {[%clk 0:02:02]} 28... Kg8 {[%clk 0:00:57.1]} 29. Ng5 {[%clk 0:02:01.9]}
29... Nc6 {[%clk 0:00:55.4]} 30. Re2 {[%clk 0:01:53.5]} 30... Bf5 {[%clk
0:00:41.7]} 31. e6 {[%clk 0:01:46.2]} 31... Bxe6 {[%clk 0:00:36.8]} 32. Rde1
{[%clk 0:01:39.4]} 32... Bg4 {[%clk 0:00:16.6]} 33. f3 {[%clk 0:01:30.4]} 33...
Rxe2 {[%clk 0:00:14]} 34. Qxe2 {[%clk 0:01:24.7]} 34... Bf5 {[%clk 0:00:11.6]}
35. Ne4 {[%clk 0:01:25.1]} 1-0

[Event "*** SCC Grand Prix: Titled Tuesday Blitz"]
[Site "Chess.com"]
[Date "2020.06.23"]
[Round "10"]
[White "bazar-wokzal"]
[Black "diamonds13"]
[Result "1-0"]
[WhiteElo "2428"]
[BlackElo "2264"]
[TimeControl "180+1"]
[EndTime "11:56:17 PDT"]
[Termination "bazar-wokzal won by checkmate"]

1. e4 {[%clk 0:02:49.4]} 1... c5 {[%clk 0:02:59.6]} 2. c3 {[%clk 0:02:49.4]}
2... d5 {[%clk 0:02:59]} 3. exd5 {[%clk 0:02:49.3]} 3... Qxd5 {[%clk 0:02:59.6]}
4. d4 {[%clk 0:02:49.9]} 4... Nf6 {[%clk 0:02:59.1]} 5. Nf3 {[%clk 0:02:50.1]}
5... Bf5 {[%clk 0:02:58.8]} 6. dxc5 {[%clk 0:02:41.5]} 6... Qxd1+ {[%clk
0:02:56.8]} 7. Kxd1 {[%clk 0:02:41]} 7... e6 {[%clk 0:02:56.4]} 8. Be3 {[%clk
0:02:41]} 8... Nd5 {[%clk 0:02:53.3]} 9. Bb5+ {[%clk 0:02:35.3]} 9... Nc6 {[%clk
0:02:50.2]} 10. Nd4 {[%clk 0:02:21.3]} 10... Bg4+ {[%clk 0:02:31.5]} 11. Kc2
{[%clk 0:02:15]} 11... Nxe3+ {[%clk 0:02:24.1]} 12. fxe3 {[%clk 0:02:14.6]}
12... O-O-O {[%clk 0:02:20.6]} 13. Bxc6 {[%clk 0:02:11.6]} 13... bxc6 {[%clk
0:02:18.5]} 14. b4 {[%clk 0:02:11.6]} 14... Kc7 {[%clk 0:02:13.6]} 15. Rf1
{[%clk 0:02:03.9]} 15... f6 {[%clk 0:02:09.7]} 16. h3 {[%clk 0:02:02.3]} 16...
e5 {[%clk 0:02:06.4]} 17. hxg4 {[%clk 0:02:00.9]} 17... exd4 {[%clk 0:02:05.9]}
18. exd4 {[%clk 0:01:59.1]} 18... Re8 {[%clk 0:02:02.9]} 19. Kd3 {[%clk
0:01:56.6]} 19... h5 {[%clk 0:01:59.6]} 20. gxh5 {[%clk 0:01:37.5]} 20... Rxh5
{[%clk 0:01:58.9]} 21. Nd2 {[%clk 0:01:37.7]} 21... Rg5 {[%clk 0:01:53.8]} 22.
Rae1 {[%clk 0:01:36]} 22... Rxe1 {[%clk 0:01:49.6]} 23. Rxe1 {[%clk 0:01:35.7]}
23... Rxg2 {[%clk 0:01:50.1]} 24. Re8 {[%clk 0:01:35.1]} 24... Bxc5 {[%clk
0:01:42.2]} 25. bxc5 {[%clk 0:01:30.7]} 25... Kd7 {[%clk 0:01:41.9]} 26. Ra8
{[%clk 0:01:28.3]} 26... g5 {[%clk 0:01:41.7]} 27. Rxa7+ {[%clk 0:01:13.1]}
27... Ke6 {[%clk 0:01:41.6]} 28. Ne4 {[%clk 0:01:04.9]} 28... f5 {[%clk
0:01:37.7]} 29. Nd6 {[%clk 0:01:04.4]} 29... g4 {[%clk 0:01:31.8]} 30. Rg7
{[%clk 0:00:58]} 30... f4 {[%clk 0:01:22.6]} 31. Rg6+ {[%clk 0:00:53.1]} 31...
Kd7 {[%clk 0:01:20.5]} 32. c4 {[%clk 0:00:42.9]} 32... f3 {[%clk 0:01:19.8]} 33.
d5 {[%clk 0:00:39.4]} 33... f2 {[%clk 0:01:10.4]} 34. Rg7+ {[%clk 0:00:31]}
34... Kd8 {[%clk 0:01:09.7]} 35. Ke2 {[%clk 0:00:30.8]} 35... g3 {[%clk
0:01:01.7]} 36. dxc6 {[%clk 0:00:29.5]} 36... Rg1 {[%clk 0:00:51.1]} 37. c7#
{[%clk 0:00:28.3]} 1-0

[Event "*** SCC Grand Prix: Titled Tuesday Blitz"]
[Site "Chess.com"]
[Date "2020.06.23"]
[Round "10"]
[White "Harry_Rakkel"]
[Black "Anuar_Is"]
[Result "0-1"]
[WhiteElo "2569"]
[BlackElo "2822"]
[TimeControl "180+1"]
[EndTime "11:56:20 PDT"]
[Termination "Anuar_Is won on time"]

1. d4 {[%clk 0:03:00.9]} 1... Nf6 {[%clk 0:02:59.8]} 2. Nf3 {[%clk 0:02:59.6]}
2... e6 {[%clk 0:02:58.7]} 3. Bf4 {[%clk 0:02:58.7]} 3... c5 {[%clk 0:02:57.3]}
4. c3 {[%clk 0:02:57.8]} 4... Be7 {[%clk 0:02:55.6]} 5. e3 {[%clk 0:02:56.2]}
5... O-O {[%clk 0:02:55.6]} 6. Nbd2 {[%clk 0:02:55.6]} 6... b6 {[%clk 0:02:56]}
7. Bd3 {[%clk 0:02:54.8]} 7... Ba6 {[%clk 0:02:55.6]} 8. Qe2 {[%clk 0:02:51.8]}
8... Bxd3 {[%clk 0:02:55]} 9. Qxd3 {[%clk 0:02:52.2]} 9... d5 {[%clk 0:02:54.7]}
10. O-O {[%clk 0:02:51.8]} 10... Nbd7 {[%clk 0:02:54.9]} 11. Ne5 {[%clk
0:02:46.5]} 11... Qc8 {[%clk 0:02:50]} 12. Rac1 {[%clk 0:02:39.4]} 12... Rd8
{[%clk 0:02:48.1]} 13. h3 {[%clk 0:02:37.7]} 13... Nf8 {[%clk 0:02:47.8]} 14. c4
{[%clk 0:02:33.2]} 14... Qb7 {[%clk 0:02:46]} 15. b3 {[%clk 0:02:11.4]} 15...
cxd4 {[%clk 0:02:41.1]} 16. exd4 {[%clk 0:02:11.2]} 16... Rac8 {[%clk 0:02:41]}
17. Ndf3 {[%clk 0:02:09.4]} 17... Qa6 {[%clk 0:02:37]} 18. Ng5 {[%clk
0:02:05.7]} 18... Nh5 {[%clk 0:02:28.5]} 19. Ngxf7 {[%clk 0:01:55]} 19... Nxf4
{[%clk 0:02:26.3]} 20. Qf3 {[%clk 0:01:55.5]} 20... N4g6 {[%clk 0:02:09.5]} 21.
Nxd8 {[%clk 0:01:29.2]} 21... Nxe5 {[%clk 0:02:08.4]} 22. dxe5 {[%clk
0:01:29.7]} 22... Rxd8 {[%clk 0:02:08]} 23. cxd5 {[%clk 0:01:30.2]} 23... Rxd5
{[%clk 0:02:06.3]} 24. Rc7 {[%clk 0:01:29.3]} 24... Ng6 {[%clk 0:02:05]} 25.
Rfc1 {[%clk 0:01:11]} 25... Rxe5 {[%clk 0:01:52.4]} 26. Qa8+ {[%clk 0:01:09.6]}
26... Bf8 {[%clk 0:01:48.4]} 27. Qe8 {[%clk 0:00:51.2]} 27... Qe2 {[%clk
0:01:36.1]} 28. Qf7+ {[%clk 0:00:25.3]} 28... Kh8 {[%clk 0:01:36.1]} 29. R1c2
{[%clk 0:00:16.5]} 29... Qe1+ {[%clk 0:01:33.9]} 30. Kh2 {[%clk 0:00:16.3]}
30... Rf5 {[%clk 0:01:34.4]} 31. Qd7 {[%clk 0:00:11.9]} 31... h5 {[%clk
0:01:21]} 32. f3 {[%clk 0:00:07.1]} 32... Qe5+ {[%clk 0:01:15.5]} 33. Kh1 {[%clk
0:00:06]} 33... Bd6 {[%clk 0:01:13.4]} 34. Rc8+ {[%clk 0:00:05.4]} 34... Kh7
{[%clk 0:01:13.4]} 35. g4 {[%clk 0:00:03.1]} 35... Rxf3 {[%clk 0:01:10]} 0-1

[Event "*** SCC Grand Prix: Titled Tuesday Blitz"]
[Site "Chess.com"]
[Date "2020.06.23"]
[Round "10"]
[White "Canairez"]
[Black "deep306"]
[Result "0-1"]
[WhiteElo "2389"]
[BlackElo "2665"]
[TimeControl "180+1"]
[EndTime "11:56:21 PDT"]
[Termination "deep306 won on time"]

1. d4 {[%clk 0:03:00.9]} 1... e6 {[%clk 0:03:00]} 2. Nf3 {[%clk 0:03:01.1]} 2...
b6 {[%clk 0:03:00.3]} 3. c4 {[%clk 0:03:01.3]} 3... Bb7 {[%clk 0:03:00.9]} 4.
Nc3 {[%clk 0:02:57.5]} 4... Bb4 {[%clk 0:03:00.3]} 5. e3 {[%clk 0:02:51.2]} 5...
f5 {[%clk 0:02:59.7]} 6. d5 {[%clk 0:02:40.5]} 6... Nf6 {[%clk 0:02:57.2]} 7.
dxe6 {[%clk 0:02:40.1]} 7... Bxc3+ {[%clk 0:02:56.9]} 8. bxc3 {[%clk 0:02:39.6]}
8... dxe6 {[%clk 0:02:55.9]} 9. Qxd8+ {[%clk 0:02:35.4]} 9... Kxd8 {[%clk
0:02:56.1]} 10. c5 {[%clk 0:02:34.6]} 10... Nbd7 {[%clk 0:02:50.7]} 11. Ba3
{[%clk 0:02:18.3]} 11... Nxc5 {[%clk 0:02:48.9]} 12. Bc4 {[%clk 0:01:58.9]}
12... Ke7 {[%clk 0:02:43.5]} 13. Rb1 {[%clk 0:01:46]} 13... Bd5 {[%clk
0:02:39.2]} 14. Be2 {[%clk 0:01:25]} 14... Bxa2 {[%clk 0:02:33.6]} 15. Rb2
{[%clk 0:01:16.9]} 15... Bd5 {[%clk 0:02:33.1]} 16. c4 {[%clk 0:01:10.1]} 16...
Be4 {[%clk 0:02:31.8]} 17. Ne5 {[%clk 0:01:08.4]} 17... Nd7 {[%clk 0:02:26.5]}
18. Nxd7 {[%clk 0:00:48.1]} 18... Kxd7 {[%clk 0:02:26.3]} 19. f3 {[%clk
0:00:49]} 19... Bc6 {[%clk 0:02:25.9]} 20. Kf2 {[%clk 0:00:39.1]} 20... Rhd8
{[%clk 0:02:24.8]} 21. Ra1 {[%clk 0:00:38.1]} 21... a5 {[%clk 0:02:22.8]} 22. h4
{[%clk 0:00:33.7]} 22... a4 {[%clk 0:02:22.5]} 23. h5 {[%clk 0:00:33.2]} 23...
h6 {[%clk 0:02:21.6]} 24. g4 {[%clk 0:00:33.2]} 24... fxg4 {[%clk 0:02:20]} 25.
Bxc5 {[%clk 0:00:30.5]} 25... bxc5 {[%clk 0:02:19.4]} 26. fxg4 {[%clk
0:00:31.2]} 26... Ke7 {[%clk 0:02:18.1]} 27. Kg3 {[%clk 0:00:31.5]} 27... Rab8
{[%clk 0:02:09.8]} 28. Rxb8 {[%clk 0:00:28.4]} 28... Rxb8 {[%clk 0:02:09.4]} 29.
Kf4 {[%clk 0:00:29.3]} 29... Rb2 {[%clk 0:02:08.3]} 30. Bd3 {[%clk 0:00:29.4]}
30... Rb3 {[%clk 0:02:05.1]} 31. Bg6 {[%clk 0:00:29.1]} 31... Rc3 {[%clk
0:02:04.5]} 32. e4 {[%clk 0:00:29.2]} 32... Rxc4 {[%clk 0:02:03.2]} 33. Ke5
{[%clk 0:00:30.1]} 33... Rb4 {[%clk 0:01:37.5]} 34. Rf1 {[%clk 0:00:30.3]} 34...
Be8 {[%clk 0:01:37.2]} 35. Rc1 {[%clk 0:00:18]} 35... Bxg6 {[%clk 0:01:32.4]}
36. hxg6 {[%clk 0:00:17.2]} 36... c4 {[%clk 0:01:32.7]} 37. Rf1 {[%clk
0:00:16.9]} 37... Rb5+ {[%clk 0:01:30.3]} 38. Kd4 {[%clk 0:00:17.4]} 38... Kd6
{[%clk 0:01:27.1]} 39. Rf7 {[%clk 0:00:16]} 39... a3 {[%clk 0:01:26.6]} 40. Kxc4
{[%clk 0:00:08.5]} 40... a2 {[%clk 0:01:24.3]} 41. Rf1 {[%clk 0:00:07.8]} 41...
Rb1 {[%clk 0:01:24.1]} 42. e5+ {[%clk 0:00:05.9]} 42... Kxe5 {[%clk 0:01:23.1]}
0-1

[Event "*** SCC Grand Prix: Titled Tuesday Blitz"]
[Site "Chess.com"]
[Date "2020.06.23"]
[Round "10"]
[White "mbachez"]
[Black "Tooweak2slow03"]
[Result "0-1"]
[WhiteElo "2454"]
[BlackElo "2667"]
[TimeControl "180+1"]
[EndTime "11:56:27 PDT"]
[Termination "Tooweak2slow03 won on time"]

1. e4 {[%clk 0:03:00.9]} 1... e6 {[%clk 0:02:58]} 2. d4 {[%clk 0:02:59.9]} 2...
d5 {[%clk 0:02:54.3]} 3. Bd3 {[%clk 0:02:59.2]} 3... c5 {[%clk 0:02:54.1]} 4.
exd5 {[%clk 0:02:58.5]} 4... exd5 {[%clk 0:02:55]} 5. Nf3 {[%clk 0:02:59]} 5...
Nf6 {[%clk 0:02:54.4]} 6. O-O {[%clk 0:02:58.6]} 6... Be7 {[%clk 0:02:54.2]} 7.
dxc5 {[%clk 0:02:58.6]} 7... O-O {[%clk 0:02:54.5]} 8. Nbd2 {[%clk 0:02:58.6]}
8... Bxc5 {[%clk 0:02:54.2]} 9. Nb3 {[%clk 0:02:58.5]} 9... Bd6 {[%clk
0:02:53.2]} 10. h3 {[%clk 0:02:58.4]} 10... h6 {[%clk 0:02:52.1]} 11. c3 {[%clk
0:02:58.8]} 11... Nc6 {[%clk 0:02:51.9]} 12. Re1 {[%clk 0:02:59.1]} 12... b6
{[%clk 0:02:46.9]} 13. Nbd4 {[%clk 0:02:58.5]} 13... Bb7 {[%clk 0:02:42.4]} 14.
Nxc6 {[%clk 0:02:50.4]} 14... Bxc6 {[%clk 0:02:43.3]} 15. Nd4 {[%clk 0:02:50.9]}
15... Bb7 {[%clk 0:02:43]} 16. Qf3 {[%clk 0:02:50.9]} 16... Ne4 {[%clk
0:02:32.4]} 17. Nf5 {[%clk 0:02:48.2]} 17... Bb8 {[%clk 0:02:25.5]} 18. Qg4
{[%clk 0:02:36.2]} 18... g6 {[%clk 0:01:36.4]} 19. Bxh6 {[%clk 0:02:32.6]} 19...
Bc8 {[%clk 0:01:29.9]} 20. Bxe4 {[%clk 0:01:41.6]} 20... dxe4 {[%clk 0:01:28.4]}
21. Rad1 {[%clk 0:01:23.6]} 21... Qf6 {[%clk 0:01:26.9]} 22. Bxf8 {[%clk
0:00:17.1]} 22... Bxf5 {[%clk 0:01:22.7]} 23. Qe2 {[%clk 0:00:15.9]} 23... Kxf8
{[%clk 0:01:21.5]} 24. Qb5 {[%clk 0:00:14.9]} 24... Be5 {[%clk 0:01:14.2]} 25.
Rd5 {[%clk 0:00:13.7]} 25... Re8 {[%clk 0:01:10.6]} 26. g4 {[%clk 0:00:12.8]}
26... Bc8 {[%clk 0:01:04.3]} 27. Qb4+ {[%clk 0:00:07.4]} 27... Kg7 {[%clk
0:01:02.3]} 28. Rxe4 {[%clk 0:00:07.3]} 28... Bh2+ {[%clk 0:00:55.2]} 29. Kxh2
{[%clk 0:00:05.9]} 29... Qxf2+ {[%clk 0:00:53.5]} 30. Kh1 {[%clk 0:00:03]} 30...
Qf3+ {[%clk 0:00:54.1]} 0-1